bitfinex-derivatives/quotes_BTCF0:USTF0_20250309
["timestamp","ask_amount","ask_price","bid_price","bid_amount"]
[1741497848909,0.1354979,86127.0,86126.0,0.34060206]
[1741497849303,0.06582,86127.0,86126.0,0.34060206]
[1741497849714,0.00012,86127.0,86126.0,0.34060206]
[1741497850212,0.0697971,86127.0,86126.0,0.34060206]
[1741497850414,0.1355971,86127.0,86126.0,0.34060206]
[1741497852511,0.06592,86127.0,86126.0,0.34060206]
[1741497853514,0.1355971,86127.0,86126.0,0.34060206]
[1741497853814,0.1355971,86127.0,86126.0,0.1320779]
[1741497857420,0.06592,86127.0,86126.0,0.1320779]
[1741497858215,0.1355971,86127.0,86126.0,0.1320779]
[1741497869516,0.1355971,86127.0,86126.0,0.41007134]
[1741497871121,0.06592,86127.0,86126.0,0.41007134]
[1741497871318,0.06592,86127.0,86126.0,0.44207134]
[1741497872017,0.03342,86127.0,86126.0,0.44207134]
[1741497873224,0.00012,86127.0,86126.0,0.44207134]
[1741497873616,0.00011576,86131.0,86130.0,0.0696746]
[1741497874221,0.00011576,86131.0,86130.0,0.1329746]
[1741497876431,0.00019576,86131.0,86130.0,0.1329746]
[1741497876929,0.00019576,86131.0,86130.0,0.4937746]
[1741497878030,0.00019576,86131.0,86130.0,0.92904564]
[1741497878425,0.00019576,86131.0,86130.0,1.29424564]
[1741497878629,2.767e-05,86131.0,86130.0,1.29424564]
[1741497882231,0.00010767,86131.0,86130.0,1.29424564]
[1741497884232,0.00010767,86131.0,86130.0,0.92904564]
[1741497884433,0.00010767,86131.0,86130.0,0.4937746]
[1741497885829,0.00010767,86131.0,86130.0,0.5680946]
[1741497886425,0.00010767,86131.0,86130.0,0.4937746]
[1741497887227,0.00014767,86131.0,86130.0,0.4937746]
[1741497888228,0.00022767,86131.0,86130.0,0.4937746]
[1741497896348,0.06990147,86131.0,86130.0,0.0696746]
[1741497896637,0.13270147,86131.0,86130.0,0.0696746]
[1741497897344,0.13274147,86131.0,86130.0,0.0696746]
[1741497898239,0.13282147,86131.0,86130.0,0.0696746]
[1741497899436,0.13282147,86131.0,86130.0,0.1023746]
[1741497901345,0.0696754,86130.0,86129.0,0.0696748]
[1741497901548,0.1011754,86130.0,86129.0,0.0696748]
[1741497901733,0.1647754,86130.0,86129.0,0.0696748]
[1741497902842,0.1647754,86130.0,86129.0,0.0996748]
[1741497903547,0.1647754,86130.0,86129.0,0.1302748]
[1741497905050,0.0951,86130.0,86129.0,0.1302748]
[1741497905250,0.1647746,86130.0,86129.0,0.1302748]
[1741497906738,0.1647746,86130.0,86129.0,0.33906163]
[1741497910245,0.1647746,86130.0,86129.0,0.20878683]
[1741497910849,0.0951,86130.0,86128.0,0.20878683]
[1741497911049,0.1446754,86129.0,86128.0,0.20878683]
[1741497911446,0.2073754,86129.0,86128.0,0.20878683]
[1741497911847,0.3573754,86129.0,86128.0,0.20878683]
[1741497913256,0.3574554,86129.0,86128.0,0.20878683]
[1741497913659,0.2074554,86129.0,86128.0,0.20878683]
[1741497913954,0.3574554,86129.0,86128.0,0.20878683]
[1741497914148,0.2074554,86129.0,86128.0,0.20878683]
[1741497915459,0.0696803,86123.0,86122.0,0.00017417]
[1741497915660,0.5054403,86123.0,86122.0,0.00017417]
[1741497916360,0.5665403,86123.0,86122.0,0.00017417]
[1741497929078,0.5665403,86123.0,86119.0,0.0654]
[1741497929279,0.0696892,86112.0,86111.0,0.00174172]
[1741497929480,0.5052492,86112.0,86111.0,0.00174172]
[1741497930285,0.5052892,86112.0,86111.0,0.00174172]
[1741497930586,0.51699811,86112.0,86111.0,0.00174172]
[1741497930990,0.57879811,86112.0,86111.0,0.00174172]
[1741497931182,0.57887811,86112.0,86111.0,0.00174172]
[1741497933374,0.57891811,86112.0,86111.0,0.00174172]
[1741497934186,0.57899811,86112.0,86111.0,0.00174172]
[1741497936281,0.21819811,86112.0,86111.0,0.00174172]
[1741497936481,0.93979811,86112.0,86111.0,0.00174172]
[1741497937792,0.93979811,86112.0,86111.0,0.06224172]
[1741497940290,0.90899811,86112.0,86111.0,0.06224172]
[1741497942993,0.54819811,86112.0,86111.0,0.06224172]
[1741497944393,0.54795811,86112.0,86111.0,0.06224172]
[1741497946300,0.47343811,86112.0,86111.0,0.06224172]
[1741497946486,0.54791811,86112.0,86111.0,0.06224172]
[1741497950390,0.54787811,86112.0,86111.0,0.06224172]
[1741497951403,0.54787811,86112.0,86111.0,0.0605]
[1741497952791,0.90867811,86112.0,86111.0,0.0605]
[1741497955198,0.7915292,86112.0,86111.0,0.0605]
[1741497955403,0.8659292,86112.0,86111.0,0.0605]
[1741497956196,0.8656892,86112.0,86111.0,0.13019]
[1741497956996,0.51673514,86112.0,86111.0,0.13019]
[1741497957306,0.5048892,86112.0,86111.0,0.13019]
[1741497957500,0.5048892,86112.0,86111.0,0.0605]
[1741497957690,0.5049692,86112.0,86111.0,0.0605]
[1741497958104,0.5355692,86112.0,86111.0,0.0605]
[1741497958394,0.54696562,86112.0,86111.0,0.0605]
[1741497960208,0.18616562,86112.0,86111.0,0.0605]
[1741497960402,0.54696562,86112.0,86111.0,0.0605]
[1741497960905,0.51636562,86112.0,86111.0,0.13019]
[1741497962007,0.51636562,86112.0,86111.0,0.0605]
[1741497962306,0.54856562,86112.0,86111.0,0.0605]
[1741497962505,0.57886562,86112.0,86111.0,0.0605]
[1741497962693,0.54856562,86112.0,86111.0,0.0605]
[1741497962900,0.72250666,86112.0,86111.0,0.0605]
[1741497963208,0.36170666,86112.0,86111.0,0.0605]
[1741497963395,0.72250666,86112.0,86111.0,0.0605]
[1741497964006,0.75560666,86112.0,86111.0,0.0605]
[1741497964205,0.75564666,86112.0,86111.0,0.0605]
[1741497965300,0.75568666,86112.0,86111.0,0.0605]
[1741497966409,0.75576666,86112.0,86111.0,0.0605]
[1741497967209,0.67883024,86112.0,86111.0,0.13019]
[1741497967904,0.67887024,86112.0,86111.0,0.13019]
[1741497968401,0.53474104,86112.0,86111.0,0.13019]
[1741497968601,0.60443024,86112.0,86111.0,0.13019]
[1741497969304,0.4304892,86112.0,86111.0,0.13019]
[1741497970911,0.36088,86112.0,86111.0,0.13019]
[1741497971301,0.00017417,86120.0,86116.0,0.069686]
[1741497971607,0.430485,86118.0,86116.0,0.069686]
[1741497971814,0.36140001,86118.0,86116.0,0.069686]
[1741497972115,0.00021417,86120.0,86116.0,0.069686]
[1741497972298,0.00021417,86120.0,86116.0,0.133086]
[1741497972299,8e-05,86118.0,86116.0,0.133086]
[1741497972611,8e-05,86118.0,86117.0,0.0696851]
[1741497973002,8e-05,86118.0,86117.0,0.1330851]
[1741497973306,0.00017417,86120.0,86119.0,0.0696835]
[1741497973509,0.00017417,86120.0,86119.0,0.10862955]
[1741497973812,0.00017417,86120.0,86119.0,0.25862955]
[1741497974715,0.00017417,86120.0,86119.0,0.2196835]
[1741497974907,0.00017417,86120.0,86119.0,0.23605277]
[1741497975310,0.00025417,86120.0,86119.0,0.23605277]
[1741497975799,0.00025417,86120.0,86119.0,0.2196835]
[1741497976313,0.00025417,86120.0,86119.0,0.5848835]
[1741497976619,0.00025417,86120.0,86119.0,0.4348835]
[1741497976808,0.00025417,86120.0,86119.0,0.87357387]
[1741497977009,0.00025417,86120.0,86119.0,0.93817387]
[1741497978914,0.00025417,86120.0,86119.0,0.95455029]
[1741497980116,0.00025417,86120.0,86119.0,0.4994835]
[1741497980710,0.0697171,86127.0,86126.0,0.0696779]
[1741497981215,0.0697171,86127.0,86126.0,0.08615076]
[1741497981515,0.0697171,86127.0,86126.0,0.14815076]
[1741497989018,0.0697171,86127.0,86126.0,0.1316779]
[1741497989326,0.0697171,86127.0,86126.0,0.14811677]
[1741497989916,0.0697171,86127.0,86126.0,0.14811855]
[1741497997329,0.0697171,86127.0,86126.0,0.14812029]
[1741497999136,4e-05,86127.0,86126.0,0.14812029]
[1741497999331,0.0317,86134.0,86133.0,0.0696722]
[1741497999534,0.06494,86134.0,86133.0,0.08611459]
[1741497999914,0.06494,86134.0,86133.0,0.14681459]
[1741498000131,0.07448,86149.0,86142.0,0.0696649]
[1741498000324,0.07448,86150.0,86143.0,0.10724239]
[1741498000524,0.07448,86150.0,86149.0,0.0696593]
[1741498000723,0.07448,86150.0,86149.0,0.08610986]
[1741498001125,0.1441385,86150.0,86149.0,0.08610986]
[1741498001429,0.1442185,86150.0,86149.0,0.08610986]
[1741498001620,0.2065185,86150.0,86149.0,0.08610986]
[1741498002116,0.2065185,86150.0,86149.0,0.14720986]
[1741498002117,0.06238,86150.0,86149.0,0.14720986]
[1741498002926,0.06238,86150.0,86149.0,0.15867884]
[1741498003121,8e-05,86150.0,86149.0,0.23319884]
[1741498003327,0.0629,86153.0,86152.0,0.0696568]
[1741498003522,0.0629,86153.0,86152.0,0.08610736]
[1741498004328,0.06298,86153.0,86152.0,0.08610736]
[1741498005430,8e-05,86153.0,86152.0,0.45144005]
[1741498006227,0.0637,86157.0,86156.0,0.0696536]
[1741498006536,0.0637,86157.0,86156.0,0.08623685]
[1741498007335,0.06378,86157.0,86156.0,0.08623685]
[1741498007539,0.06378,86157.0,86156.0,0.08620307]
[1741498010036,0.06378,86157.0,86156.0,0.10072937]
[1741498011231,0.03228,86157.0,86156.0,0.10072937]
[1741498011541,0.03228,86157.0,86156.0,0.10064763]
[1741498011743,8e-05,86157.0,86156.0,0.10064763]
[1741498012038,0.3608,86182.0,86160.0,0.034825]
[1741498012250,0.0955,86181.0,86180.0,0.0696342]
[1741498012447,0.0955,86181.0,86180.0,0.08610193]
[1741498012744,0.0955,86181.0,86180.0,0.16464612]
[1741498012929,0.0955,86181.0,86180.0,0.2052602]
[1741498013130,0.1651334,86181.0,86180.0,0.2052602]
[1741498013341,0.1651334,86181.0,86180.0,0.21672352]
[1741498013342,0.0955,86181.0,86180.0,0.21672352]
[1741498013640,0.1651334,86181.0,86180.0,0.2052602]
[1741498014255,0.09558,86181.0,86180.0,0.23761236]
[1741498014651,0.09558,86181.0,86180.0,0.24941198]
[1741498014854,0.09558,86181.0,86180.0,0.23761236]
[1741498015362,0.0955,86181.0,86180.0,0.23761236]
[1741498015553,0.0955,86181.0,86180.0,0.23774324]
[1741498016453,0.09558,86181.0,86180.0,0.23774324]
[1741498017458,0.09558,86181.0,86180.0,0.23943318]
[1741498019552,0.09558,86181.0,86180.0,0.23942404]
[1741498020458,0.09558,86181.0,86180.0,0.22503483]
[1741498021963,0.09558,86181.0,86180.0,0.25823483]
[1741498022264,0.09558,86181.0,86180.0,0.24027188]
[1741498022764,0.09558,86181.0,86180.0,0.27327188]
[1741498022966,0.09558,86181.0,86180.0,0.24027188]
[1741498023552,0.09558,86181.0,86180.0,0.22195511]
[1741498025464,0.09558,86181.0,86180.0,0.20398896]
[1741498025665,0.09558,86181.0,86180.0,0.22195594]
[1741498025863,0.09558,86181.0,86180.0,0.20398896]
[1741498026065,0.09558,86181.0,86180.0,0.18875605]
[1741498026364,0.09558,86181.0,86180.0,0.17078896]
[1741498026758,0.09558,86181.0,86180.0,0.18876136]
[1741498027163,0.0696312,86184.0,86180.0,0.10115476]
[1741498027469,0.0696312,86184.0,86183.0,0.0696318]
[1741498027768,0.0696312,86184.0,86183.0,0.17078656]
[1741498028269,0.36084,86185.0,86183.0,0.18875902]
[1741498028470,0.36084,86185.0,86184.0,0.13017168]
[1741498028671,0.36084,86185.0,86184.0,0.19097168]
[1741498028855,0.36084,86185.0,86184.0,0.23158576]
[1741498029563,0.4304702,86185.0,86184.0,0.24955822]
[1741498029770,0.4304702,86185.0,86184.0,0.23158576]
[1741498030471,0.5233702,86185.0,86184.0,0.24958842]
[1741498030969,0.6044502,86185.0,86184.0,0.24958842]
[1741498031367,0.6044502,86185.0,86184.0,0.23158576]
[1741498032369,0.6044502,86185.0,86184.0,0.24959215]
[1741498033275,0.6044502,86185.0,86184.0,0.23158576]
[1741498033666,0.6044502,86185.0,86184.0,0.24960134]
[1741498034370,0.6044502,86185.0,86184.0,0.23158576]
[1741498034570,0.6044502,86185.0,86184.0,0.21821288]
[1741498035082,0.6044502,86185.0,86184.0,0.21641196]
[1741498035272,0.53482,86185.0,86184.0,0.21641196]
[1741498036480,0.17402,86185.0,86184.0,0.21641196]
[1741498036675,0.53482,86185.0,86184.0,0.21641196]
[1741498036873,0.6044502,86185.0,86184.0,0.19141868]
[1741498037067,0.6044502,86185.0,86184.0,0.17363164]
[1741498037273,0.2436502,86185.0,86184.0,0.19086904]
[1741498037477,0.6044502,86185.0,86184.0,0.19086904]
[1741498038371,0.53482,86185.0,86184.0,0.19086904]
[1741498038578,0.6044502,86185.0,86184.0,0.19086904]
[1741498039883,0.6044502,86185.0,86184.0,0.06043804]
[1741498041784,0.6044502,86185.0,86184.0,0.0328582]
[1741498042574,0.6044502,86185.0,86184.0,0.0659582]
[1741498042770,0.6045302,86185.0,86184.0,0.0659582]
[1741498043471,0.6044102,86185.0,86184.0,0.0659582]
[1741498043990,0.6044102,86185.0,86184.0,0.1355892]
[1741498044484,0.6044902,86185.0,86184.0,0.1355892]
[1741498044680,0.39158,86185.0,86184.0,0.1355892]
[1741498044884,0.47238,86185.0,86184.0,0.1355892]
[1741498045087,0.5420102,86185.0,86184.0,0.1355892]
[1741498045283,0.5419302,86185.0,86184.0,0.1355892]
[1741498045682,0.3608,86185.0,86184.0,0.1355892]
[1741498045886,0.4304302,86185.0,86184.0,0.1355892]
[1741498046189,0.4612102,86185.0,86184.0,0.1355892]
[1741498046884,0.36088,86185.0,86184.0,0.1355892]
[1741498047282,0.3608,86185.0,86184.0,0.11928261]
[1741498047888,0.44152,86185.0,86184.0,0.11928261]
[1741498048384,0.4416,86185.0,86184.0,0.11928261]
[1741498049990,0.5112302,86185.0,86184.0,0.11928261]
[1741498050486,0.5417302,86185.0,86184.0,0.11928261]
[1741498051594,0.4416,86185.0,86184.0,0.11928261]
[1741498052684,0.44124,86185.0,86184.0,0.11928261]
[1741498052884,0.5413702,86185.0,86184.0,0.11928261]
[1741498053291,0.44124,86185.0,86184.0,0.15028261]
[1741498053588,0.36088,86185.0,86184.0,0.15028261]
[1741498054197,0.3608,86185.0,86184.0,0.15028261]
[1741498054694,0.3608,86185.0,86184.0,0.16487068]
[1741498055283,0.36088,86185.0,86184.0,0.16487068]
[1741498056290,0.36092,86185.0,86184.0,0.16487068]
[1741498056492,0.4942502,86185.0,86184.0,0.08065161]
[1741498057604,0.4942902,86185.0,86184.0,0.15028261]
[1741498057786,0.4942902,86185.0,86184.0,0.08065161]
[1741498058185,0.1335702,86185.0,86184.0,0.15028261]
[1741498059589,0.1335702,86185.0,86184.0,0.15014942]
[1741498059794,0.03354,86185.0,86184.0,0.15014942]
[1741498060193,0.00024,86185.0,86184.0,0.15014942]
[1741498060595,0.00024,86185.0,86184.0,0.133731]
[1741498060797,0.00024,86185.0,86184.0,0.15042069]
[1741498060997,0.00024,86185.0,86184.0,0.16502407]
[1741498062699,0.1307702,86185.0,86184.0,0.16502407]
[1741498063701,0.1307702,86185.0,86184.0,0.14833438]
[1741498064002,0.1307702,86185.0,86184.0,0.16512811]
[1741498065609,0.1307702,86185.0,86184.0,0.09549711]
[1741498065802,0.1307702,86185.0,86184.0,0.09549557]
[1741498066302,0.1308102,86185.0,86184.0,0.03139557]
[1741498067300,0.1308502,86185.0,86184.0,0.03139557]
[1741498067498,0.8133,86185.0,86173.0,0.00128]
[1741498067801,0.034823,86166.0,86152.0,0.68160921]
[1741498068002,0.0696617,86146.0,86145.0,0.62633041]
[1741498068305,0.5107017,86146.0,86145.0,0.62565041]
[1741498068499,0.5107017,86146.0,86145.0,0.65825041]
[1741498069305,0.52234848,86146.0,86145.0,0.65825041]
[1741498070211,0.52242848,86146.0,86145.0,0.65825041]
[1741498070418,0.88322848,86146.0,86145.0,0.65825041]
[1741498071601,0.7913417,86146.0,86145.0,0.65825041]
[1741498071801,0.8713817,86146.0,86145.0,0.65825041]
[1741498072213,0.8713017,86146.0,86145.0,0.65825041]
[1741498072507,0.7912617,86146.0,86145.0,0.65825041]
[1741498072910,0.8712617,86146.0,86145.0,0.65825041]
[1741498073413,0.8713417,86146.0,86145.0,0.65825041]
[1741498073915,0.8713417,86146.0,86145.0,0.0326]
[1741498074401,0.88283467,86146.0,86145.0,0.0326]
[1741498083019,0.88235467,86146.0,86145.0,0.0326]
[1741498083216,0.88235467,86146.0,86145.0,0.00434992]
[1741498084118,0.88227467,86146.0,86145.0,0.00434992]
[1741498084315,0.80283467,86146.0,86145.0,0.00434992]
[1741498084514,0.88227467,86146.0,86145.0,0.00434992]
[1741498085817,0.88219467,86146.0,86145.0,0.00434992]
[1741498088320,0.84093297,86146.0,86130.0,0.00882298]
[1741498088520,0.0696827,86120.0,86112.0,0.0348445]
[1741498088818,0.5098827,86120.0,86119.0,0.08417529]
[1741498089225,0.5099227,86120.0,86119.0,0.15385879]
[1741498089429,0.5099227,86120.0,86119.0,0.12973279]
[1741498090426,0.5100027,86120.0,86119.0,0.12973279]
[1741498090815,0.5100027,86120.0,86119.0,0.13854531]
[1741498091012,0.5100027,86120.0,86119.0,0.06886181]
[1741498091212,0.5100427,86120.0,86119.0,0.04118763]
[1741498091626,0.5100427,86120.0,86119.0,0.04083875]
[1741498092027,0.5100427,86120.0,86119.0,0.10333875]
[1741498092228,0.5100427,86120.0,86119.0,0.1305751]
[1741498092828,0.5101227,86120.0,86119.0,0.1305751]
[1741498093322,0.5101627,86120.0,86119.0,0.1305751]
[1741498094221,0.5102427,86120.0,86119.0,0.1305751]
[1741498095222,0.5102427,86120.0,86119.0,0.2002586]
[1741498095423,0.44056,86120.0,86119.0,0.2002586]
[1741498095727,0.5102427,86120.0,86119.0,0.20043386]
[1741498096320,0.5098827,86120.0,86119.0,0.20043386]
[1741498096522,0.5098827,86120.0,86119.0,0.22466125]
[1741498097225,0.5099627,86120.0,86119.0,0.15497775]
[1741498097426,0.5726627,86120.0,86119.0,0.08366523]
[1741498097928,0.5099627,86120.0,86119.0,0.08366523]
[1741498098128,0.5099627,86120.0,86119.0,0.05943784]
[1741498098329,0.5100027,86120.0,86119.0,0.05943784]
[1741498099017,0.1492027,86120.0,86119.0,0.05943784]
[1741498099222,0.8708827,86120.0,86119.0,0.03206738]
[1741498101724,0.9015827,86120.0,86119.0,0.03206738]
[1741498102633,0.95806581,86120.0,86119.0,0.03206738]
[1741498104932,0.98976581,86120.0,86119.0,0.03206738]
[1741498106326,0.98976581,86120.0,86119.0,0.01496085]
[1741498107236,0.0696851,86117.0,86116.0,0.0956]
[1741498107432,0.0696892,86112.0,86111.0,0.00017418]
[1741498107633,0.06969,86111.0,86110.0,4e-05]
[1741498107942,0.13109,86111.0,86110.0,4e-05]
[1741498108326,0.13113,86111.0,86110.0,4e-05]
[1741498109123,0.06144,86111.0,86109.0,0.0333]
[1741498109331,0.0696908,86110.0,86109.0,0.0333]
[1741498109540,0.0696908,86110.0,86109.0,0.03334]
[1741498109738,0.1006108,86110.0,86109.0,0.03334]
[1741498110037,0.1313108,86110.0,86109.0,0.04810049]
[1741498110231,0.1313108,86110.0,86109.0,0.06452066]
[1741498112440,0.18779391,86110.0,86109.0,0.06452066]
[1741498113133,0.18779391,86110.0,86109.0,0.09622066]
[1741498113845,0.26659391,86110.0,86109.0,0.09622066]
[1741498120852,0.26659391,86110.0,86109.0,0.09629782]
[1741498123848,0.26635391,86110.0,86109.0,0.09629782]
[1741498124556,0.62715391,86110.0,86109.0,0.09629782]
[1741498127757,0.78337039,86110.0,86109.0,0.09629782]
[1741498128454,0.78337039,86110.0,86109.0,0.0963513]
[1741498131553,0.42257039,86110.0,86109.0,0.0963513]
[1741498131754,0.78337039,86110.0,86109.0,0.0963513]
[1741498133064,0.42257039,86110.0,86109.0,0.0963513]
[1741498133257,0.78337039,86110.0,86109.0,0.0963513]
[1741498134664,0.78337039,86110.0,86109.0,0.09639839]
[1741498136865,0.72187039,86110.0,86109.0,0.09639839]
[1741498137869,0.78637039,86110.0,86109.0,0.09639839]
[1741498141669,0.42557039,86110.0,86109.0,0.09639839]
[1741498141863,0.78637039,86110.0,86109.0,0.09639839]
[1741498142369,0.78637039,86110.0,86109.0,0.09636126]
[1741498143161,0.78837039,86110.0,86109.0,0.09636126]
[1741498144969,0.78937039,86110.0,86109.0,0.09636126]
[1741498145373,0.78877039,86110.0,86109.0,0.09636126]
[1741498145562,0.42797039,86110.0,86109.0,0.09636126]
[1741498145759,0.78877039,86110.0,86109.0,0.09636126]
[1741498146269,0.78877039,86110.0,86109.0,0.09630201]
[1741498148864,0.78877039,86110.0,86083.0,0.3477465]
[1741498148865,0.71907959,86110.0,86083.0,0.3477465]
[1741498149166,0.16248372,86097.0,86096.0,0.0304]
[1741498149372,0.5083813,86097.0,86096.0,0.0304]
[1741498149969,0.5701813,86097.0,86096.0,0.0304]
[1741498150962,0.58157623,86097.0,86096.0,0.0334]
[1741498152278,0.58157623,86097.0,86096.0,0.03348]
[1741498152578,0.58157623,86097.0,86096.0,0.03648]
[1741498156486,0.58157623,86097.0,86096.0,0.03656]
[1741498156984,0.79427582,86097.0,86096.0,0.03656]
[1741498157171,0.79427582,86097.0,86096.0,0.0364]
[1741498160885,0.79427582,86097.0,86096.0,0.05475824]
[1741498161086,0.57349959,86097.0,86096.0,0.05475824]
[1741498161285,0.65105959,86097.0,86096.0,0.12446034]
[1741498161480,0.65105959,86097.0,86096.0,0.13637594]
[1741498161670,0.65105959,86097.0,86096.0,0.15098988]
[1741498161875,0.65105959,86097.0,86096.0,0.21448988]
[1741498162082,0.65105959,86097.0,86096.0,0.20257428]
[1741498162770,0.65105959,86097.0,86096.0,0.1996647]
[1741498162976,0.72076089,86097.0,86096.0,0.19773237]
[1741498163270,0.72076089,86097.0,86096.0,0.18602801]
[1741498163476,0.72076089,86097.0,86096.0,0.18796034]
[1741498163672,0.72076089,86097.0,86096.0,0.20257012]
[1741498163870,0.72076089,86097.0,86096.0,0.20265012]
[1741498164378,0.72080089,86097.0,86096.0,0.21414597]
[1741498164586,0.72080089,86097.0,86096.0,0.20265012]
[1741498164886,0.5081013,86097.0,86096.0,0.20265012]
[1741498165283,0.1473013,86097.0,86096.0,0.20265012]
[1741498166188,0.1473013,86097.0,86096.0,0.21433118]
[1741498166682,0.0776,86097.0,86096.0,0.21448234]
[1741498167387,0.1746523,86099.0,86098.0,0.0697005]
[1741498167577,0.1739723,86099.0,86098.0,0.44707757]
[1741498167773,0.1739723,86099.0,86098.0,0.08627757]
[1741498167974,0.1739723,86100.0,86098.0,0.10088735]
[1741498168176,0.1739723,86100.0,86099.0,0.14977677]
[1741498168378,0.1739723,86100.0,86099.0,0.14981677]
[1741498169491,0.1739723,86100.0,86099.0,0.14989677]
[1741498170490,0.1739723,86100.0,86099.0,0.15489677]
[1741498171494,0.20894094,86105.0,86099.0,0.15489677]
[1741498171495,0.10433886,86102.0,86101.0,0.0696981]
[1741498171790,0.10433886,86102.0,86101.0,0.08627517]
[1741498172691,0.10433886,86102.0,86101.0,0.08927517]
[1741498173392,0.10433886,86102.0,86101.0,0.09327517]
[1741498174894,0.10433886,86102.0,86101.0,0.0766981]
[1741498175990,0.10433886,86102.0,86101.0,0.09306574]
[1741498176395,0.10451304,86105.0,86104.0,0.0696957]
[1741498176596,0.10451304,86105.0,86104.0,0.08606334]
[1741498176992,0.10451304,86105.0,86104.0,0.10067077]
[1741498177895,0.10451304,86105.0,86104.0,0.0726957]
[1741498178397,0.10451304,86105.0,86104.0,0.0756957]
[1741498180399,0.00017418,86105.0,86104.0,0.0756957]
[1741498180693,0.03177418,86105.0,86104.0,0.0756957]
[1741498181091,0.03177418,86105.0,86104.0,0.09208266]
[1741498181293,0.06367418,86105.0,86104.0,0.09208266]
[1741498181893,0.13336908,86105.0,86104.0,0.09208266]
[1741498182199,0.00017418,86105.0,86104.0,0.09208266]
[1741498182399,4e-08,86107.0,86106.0,0.069694]
[1741498182604,0.1746123,86116.0,86109.0,0.0696916]
[1741498182798,0.1739723,86116.0,86115.0,0.4304868]
[1741498183012,0.1739723,86116.0,86115.0,0.44687376]
[1741498183500,0.1739723,86116.0,86115.0,0.45869996]
[1741498183687,0.1739723,86116.0,86115.0,0.52303996]
[1741498184192,0.1739723,86117.0,86116.0,0.069686]
[1741498184391,0.1739723,86117.0,86116.0,0.14987296]
[1741498185102,0.1739723,86117.0,86116.0,0.15008403]
[1741498185604,0.1739723,86117.0,86116.0,0.18298403]
[1741498186890,0.1739723,86117.0,86116.0,0.18898403]
[1741498187403,0.1740523,86117.0,86116.0,0.18898403]
[1741498187598,0.1740523,86117.0,86116.0,0.18298403]
[1741498187903,0.1740523,86117.0,86116.0,0.19298403]
[1741498188702,0.1740523,86117.0,86116.0,0.19398403]
[1741498189405,0.1740523,86117.0,86116.0,0.27106403]
[1741498190204,8e-05,86117.0,86116.0,0.27106403]
[1741498190405,8e-05,86117.0,86116.0,0.63626403]
[1741498193308,8e-05,86117.0,86116.0,0.63615121]
[1741498193503,8e-05,86117.0,86116.0,0.49557121]
[1741498193697,8e-05,86117.0,86116.0,0.46237121]
[1741498194503,8e-05,86117.0,86116.0,0.52387121]
[1741498194809,8e-05,86117.0,86116.0,0.51787121]
[1741498195002,8e-05,86117.0,86116.0,0.52087121]
[1741498195203,0.00016,86117.0,86116.0,0.45937121]
[1741498196404,0.00016,86117.0,86116.0,0.09417121]
[1741498198313,0.0306,86122.0,86121.0,0.0696819]
[1741498198507,0.0306,86122.0,86121.0,0.08616711]
[1741498199308,0.03068,86122.0,86121.0,0.08637283]
[1741498200913,0.03068,86122.0,86121.0,0.09137283]
[1741498201107,0.03068,86122.0,86121.0,0.09537283]
[1741498201610,0.03068,86122.0,86121.0,0.09437283]
[1741498202302,0.03068,86122.0,86121.0,0.09037283]
[1741498202507,0.03068,86122.0,86121.0,0.09437283]
[1741498202906,0.03068,86122.0,86121.0,0.09037283]
[1741498203111,0.03068,86122.0,86121.0,0.09437283]
[1741498203914,8e-05,86122.0,86121.0,0.09437283]
[1741498204308,0.0332,86123.0,86122.0,0.0696811]
[1741498204615,0.03324,86123.0,86122.0,0.08637203]
[1741498205000,4e-05,86123.0,86122.0,0.08637203]
[1741498205205,0.0348314,86145.0,86122.0,0.08637203]
[1741498205206,0.27701264,86160.0,86131.0,0.0348368]
[1741498205410,0.07668,86147.0,86134.0,0.0696714]
[1741498205618,0.20876676,86140.0,86134.0,0.08636233]
[1741498205804,0.27206676,86140.0,86134.0,0.08636233]
[1741498206317,4e-05,86136.0,86134.0,0.08636233]
[1741498206813,0.2372723,86135.0,86134.0,0.08636233]
[1741498207313,0.2373523,86135.0,86134.0,0.09801014]
[1741498207512,0.2373523,86135.0,86134.0,0.10201014]
[1741498208213,0.2373523,86135.0,86134.0,0.10501014]
[1741498208916,0.2373523,86135.0,86134.0,0.46581014]
[1741498209218,0.06338,86135.0,86134.0,0.46581014]
[1741498211521,0.06338,86135.0,86134.0,0.49761014]
[1741498211916,0.06338,86135.0,86134.0,0.53081014]
[1741498212408,8e-05,86135.0,86134.0,0.53081014]
[1741498213227,0.0313,86135.0,86134.0,0.53081014]
[1741498214316,0.03138,86135.0,86134.0,0.53081014]
[1741498215220,0.03142,86135.0,86134.0,0.53089477]
[1741498215614,0.03142,86135.0,86134.0,0.53289477]
[1741498216208,0.0315,86135.0,86134.0,0.53289477]
[1741498216613,0.0315,86135.0,86134.0,0.53389477]
[1741498217513,0.0315,86135.0,86134.0,0.53489477]
[1741498218421,0.0315,86135.0,86134.0,0.52889477]
[1741498218616,0.0315,86135.0,86134.0,0.53389477]
[1741498219219,0.0315,86135.0,86134.0,0.09544696]
[1741498219423,0.0315,86135.0,86134.0,0.02577556]
[1741498219424,0.1011706,86135.0,86134.0,0.02577556]
[1741498219622,0.1011706,86135.0,86134.0,0.09544696]
[1741498219823,0.1333706,86135.0,86134.0,0.09544696]
[1741498220023,0.1333706,86135.0,86134.0,0.09444696]
[1741498220219,0.1334106,86135.0,86134.0,0.09444696]
[1741498220819,0.1334106,86135.0,86134.0,0.09144696]
[1741498221320,0.1334906,86135.0,86134.0,0.09144696]
[1741498221524,0.1334906,86135.0,86134.0,0.0746714]
[1741498222022,0.2101306,86135.0,86134.0,0.0736714]
[1741498222223,0.2101706,86135.0,86134.0,0.0736714]
[1741498222614,0.2101706,86135.0,86134.0,0.0726714]
[1741498223211,0.2102506,86135.0,86134.0,0.0726714]
[1741498223410,0.2102506,86135.0,86134.0,0.0736714]
[1741498226519,0.2102506,86135.0,86134.0,0.0716714]
[1741498226724,0.2102506,86135.0,86134.0,0.0726714]
[1741498226926,0.2102506,86135.0,86134.0,0.0706714]
[1741498227227,0.2102506,86135.0,86134.0,0.0726714]
[1741498227427,0.2102506,86135.0,86134.0,0.0736714]
[1741498228531,0.2098106,86135.0,86134.0,0.0736714]
[1741498229325,0.2098906,86135.0,86134.0,0.0736714]
[1741498229926,0.2098906,86135.0,86134.0,0.0726714]
[1741498231120,0.2098906,86135.0,86134.0,0.0716714]
[1741498231322,0.2098906,86135.0,86134.0,0.0736714]
[1741498233831,0.2098906,86135.0,86134.0,0.0746714]
[1741498234025,0.2098906,86135.0,86134.0,0.0756714]
[1741498237735,0.2098906,86135.0,86134.0,0.1080714]
[1741498245146,0.2098906,86135.0,86134.0,0.1402714]
[1741498249947,0.22138686,86135.0,86134.0,0.1402714]
[1741498250247,0.22138686,86135.0,86134.0,0.1392714]
[1741498250448,0.2098906,86135.0,86134.0,0.1392714]